fUSD/lending_fUSD_20240217
["ID","MTS","AMOUNT","RATE_DAILY","PERIOD"]
[314345685,1708209032514,-151.021833,0.00037798,36]
[314345686,1708209032523,-151.021833,0.00037798,36]
[314345688,1708209032532,-151.021833,0.00037798,37]
[314345691,1708209032542,-151.021833,0.00037798,37]
[314345692,1708209032551,-151.26962144,0.000378,2]
[314345694,1708209032561,-187736.163944,0.0003788,10]
[314345696,1708209032570,-1063.31880972,0.0003789,2]
[314345699,1708209032579,-153.08829585,0.0003789,2]
[314345700,1708209032589,-34582.9775686,0.0003789,10]
[314345702,1708209032597,-25865.3726,0.0003789,2]
[314345704,1708209032606,-79272.6695,0.0003789,2]
[314345706,1708209032615,-190.2291,0.0003789,2]
[314345708,1708209032624,-424269.08734754,0.0003789,2]
[314345711,1708209032637,-907.94,0.0003789,2]
[314345713,1708209032651,-1438.09050001,0.0003789,2]
[314345725,1708209037911,-56161.57095245,0.0003789,2]
[314345726,1708209037921,-5000.0,0.00037899,3]
[314345727,1708209037930,-882.00171232,0.000379,11]
[314345728,1708209037939,-211.1892,0.000379,2]
[314345729,1708209037948,-35209.3378,0.000379,2]
[314345730,1708209037958,-26898.98411241,0.000379,3]
[314345731,1708209037978,-139295.0,0.000379,3]
[314346203,1708209042758,-63669.42935908,0.000379,3]
[314346221,1708209042912,-512.81942,0.000379,3]
[314346228,1708209042964,-1226.64198062,0.000379,3]
[314346230,1708209042977,-2029.12234471,0.000379,3]
[314346236,1708209043021,-2476.71618361,0.000379,3]
[314346307,1708209045734,-2790.0,0.000379,3]
[314346309,1708209045748,-28280.02871757,0.000379,3]
[314346310,1708209045758,-198.70678914,0.000379,2]
[314346311,1708209045768,-633.70020678,0.000379,2]
[314346312,1708209045777,-1224.85360401,0.000379,2]
[314346313,1708209045787,-221.1970416,0.000379,2]
[314346314,1708209045796,-389.25957484,0.000379,2]
[314346315,1708209045806,-166.46,0.00037909,2]
[314346316,1708209045816,-3530.21413804,0.0003799,3]
[314346317,1708209045835,-8160.7430423,0.0003799,3]
[314346318,1708209045850,-4358.20007664,0.0003799,3]
[314346330,1708209046207,-1238.21388448,0.0003799,3]
[314346332,1708209046220,-288.51324233,0.0003799,3]
[314346337,1708209046252,-272.16,0.0003799,3]
[314346339,1708209046264,-2679.66724348,0.0003799,3]
[314346341,1708209046276,-308.97417599,0.0003799,3]
[314346400,1708210231921,-414.64754481,0.00024979,2]
[314346402,1708210231931,-1211.03521878,0.0002498,2]
[314346404,1708210231940,-750.0,0.00025,3]
[314346405,1708210231949,-155.0,0.00028493,2]
[314346406,1708210231958,-603.9,0.00034528,2]
[314346407,1708210231967,-2000.0,0.000356,2]
[314346408,1708210231976,-2000.0,0.0003581,2]
[314346409,1708210231985,-1475.87,0.00035835,2]
[314346410,1708210231994,-279.8,0.00035836,2]
[314346411,1708210232004,-150.0,0.00035882,2]
[314346412,1708210232013,-373.02,0.00035899,2]
[314346413,1708210232022,-161.77,0.00036065,2]
[314346414,1708210232031,-250.0,0.00036102,2]
[314346415,1708210232041,-250.0,0.00036125,2]
[314346416,1708210232050,-198.68,0.00036164,2]
[314346417,1708210232059,-23900.0,0.00036261,2]
[314346418,1708210232067,-161.77,0.00036393,2]
[314346419,1708210232076,-1000.0,0.00036421,2]
[314346420,1708210232086,-299.34,0.00036679,2]
[314346421,1708210232095,-161.77,0.0003672,2]
[314346422,1708210232104,-1110.9,0.00036757,2]
[314346423,1708210232112,-603.9,0.00036792,2]
[314346424,1708210232121,-299.34,0.00036872,2]
[314346425,1708210232130,-10913.0,0.00037,2]
[314346426,1708210232140,-206.0,0.00037007,2]
[314346427,1708210232149,-161.77,0.00037048,2]
[314346428,1708210232163,-299.34,0.00037065,2]
[314346429,1708210232172,-155.0,0.00037205,4]
[314346430,1708210232181,-299.34,0.00037258,2]
[314346431,1708210232190,-161.77,0.00037376,2]
[314346432,1708210232200,-192.72790818,0.00037443,2]
[314346433,1708210232209,-299.34,0.00037451,2]
[314346434,1708210232219,-1178.83634385,0.00037466,2]
[314346435,1708210232228,-3847.47970122,0.00037467,14]
[314346436,1708210232251,-30351.90102584,0.00037467,14]
[314346438,1708210232262,-693.49434502,0.00037467,14]
[314346440,1708210232273,-9174.55777019,0.00037467,14]
[314346442,1708210232284,-564.22769707,0.00037467,14]
[314346445,1708210232314,-1589.57481014,0.00037467,14]
[314346449,1708210232329,-322.84270231,0.00037467,14]
[314346451,1708210232341,-2819.5,0.00037467,14]
[314346453,1708210232352,-4112.82199917,0.00037467,14]
[314346454,1708210232363,-833.79793316,0.00037467,14]
[314346455,1708210232374,-2065.45835351,0.00037467,14]
[314346456,1708210232385,-143624.34366237,0.00037467,14]
[314346457,1708210232395,-373.02,0.00037543,2]
[314346458,1708210232404,-2089.80073935,0.00037544,2]
[314346459,1708210232413,-150.0,0.00037546,2]
[314346460,1708210232423,-279.8,0.00037628,2]
[314346461,1708210232432,-299.34,0.00037644,2]
[314346462,1708210232441,-1938.27381,0.00037671,15]
[314346463,1708210232450,-192.72790818,0.00037703,2]
[314346464,1708210232459,-161.77,0.00037704,2]
[314346465,1708210232468,-151.021833,0.00037748,38]
[314346466,1708210232478,-151.021833,0.00037748,38]
[314346467,1708210232487,-151.021833,0.00037748,38]
[314346468,1708210232496,-151.021833,0.00037748,37]
[314346469,1708210232505,-151.021833,0.00037748,37]
[314346470,1708210232514,-151.021833,0.00037748,37]
[314346471,1708210232523,-151.021833,0.00037758,38]
[314346472,1708210232532,-151.021833,0.00037758,38]
[314346473,1708210232541,-69165.9551372,0.0003777,10]
[314346474,1708210232550,-245000.0,0.0003778,2]
[314346475,1708210232560,-1010.15286931,0.0003779,2]
[314346476,1708210232569,-2089.80073935,0.00037792,2]
[314346477,1708210232578,-299.34,0.00037837,2]
[314346478,1708210232587,-153.05109484,0.00037886,2]
[314346479,1708210232596,-48964.4493756,0.0003789,2]
[314346480,1708210232612,-929.0145636,0.0003789,2]
[314346481,1708210232630,-2151.10610243,0.0003789,2]
[314346482,1708210232654,-5353.20472529,0.0003789,2]
[314346483,1708210232665,-547.9993307,0.0003789,2]
[314346484,1708210232689,-578.8885869,0.0003789,2]
[314346485,1708210232701,-1342.52684862,0.0003789,2]
[314346486,1708210232712,-2210.42296953,0.0003789,2]
[314346490,1708210237949,-4150.54620977,0.0003789,2]
[314346491,1708210238005,-1374.23696404,0.0003789,2]
[314346492,1708210238016,-24938.01812352,0.0003789,2]
[314346493,1708210238025,-1055.25243341,0.0003789,11]
[314346494,1708210238034,-151.26962144,0.0003789,2]
[314346495,1708210238043,-151.021833,0.00037898,38]
[314346496,1708210238052,-151.021833,0.00037898,38]
[314346497,1708210238061,-151.021833,0.00037898,38]
[314346498,1708210238070,-151.021833,0.00037898,37]
[314346499,1708210238080,-151.021833,0.00037898,37]
[314346500,1708210238090,-151.021833,0.00037898,37]
[314346501,1708210238099,-151.021833,0.00037898,36]
[314346502,1708210238108,-151.021833,0.00037898,36]
[314346503,1708210238118,-151.021833,0.00037898,36]
[314346504,1708210238128,-5000.0,0.00037899,3]
[314346505,1708210238137,-30697.77614936,0.000379,3]
[314346506,1708210238149,-1640.19927352,0.000379,3]
[314346507,1708210238172,-391.45736558,0.000379,3]
[314346508,1708210238183,-55909.44016824,0.000379,3]
[314346509,1708210238192,-198.70678914,0.000379,2]
[314346510,1708210238201,-422.46680452,0.000379,2]
[314346511,1708210238211,-210.58168001,0.000379,7]
[314346512,1708210238220,-782.1293859,0.000379,2]
[314346513,1708210238230,-2926.26310954,0.000379,2]
[314346514,1708210238239,-3000.0,0.00037909,2]
[314346515,1708210238249,-192.72790818,0.00037962,2]
[314346516,1708210238258,-151.021833,0.00037978,39]
[314346517,1708210238267,-151.021833,0.00037978,39]
[314346518,1708210238277,-151.021833,0.00037978,39]
[314346520,1708210238286,-151.021833,0.00037978,38]
[314346521,1708210238295,-194.92961721,0.00037989,3]
[314346523,1708210238303,-90958.66720524,0.00037989,3]
[314346526,1708210238316,-103500.0,0.00037989,3]
[314346535,1708210238393,-814.33992255,0.00037989,3]
[314346849,1708210241357,-3165.28298335,0.00037989,3]
[314346851,1708210241368,-103400.0,0.00037989,3]
[314347049,1708210243054,-2262.35165034,0.00037989,3]
[314347057,1708210243110,-362.132771,0.00037989,3]
[314347059,1708210243122,-803.05557728,0.00037989,3]
[314347064,1708210243161,-550.71678,0.00037989,3]
[314347077,1708210243271,-446.4612524,0.00037989,3]
[314347127,1708210246454,-259.50638322,0.000379,2]
[314347128,1708210246463,-46163.08497005,0.00037989,3]
[314347129,1708210246477,-11371.57760401,0.00037989,3]
[314347130,1708210246497,-7520.30756564,0.00037989,3]
[314347131,1708210246520,-548.68706531,0.00037989,3]
[314347132,1708210246531,-619.12988721,0.00037989,3]
[314347133,1708210246542,-1111.93190577,0.00037989,3]
[314347134,1708210246554,-5581.22444984,0.00037989,3]
[314347135,1708210246578,-665.7765725,0.00037989,3]
[314347137,1708210314079,13073.32292054,0.00022789,2]
[314347139,1708210409589,5000.0,0.000251,30]
[314347140,1708210478690,10000.0,0.00025,30]
[314347141,1708210499096,10000.0,0.00025,30]
[314347142,1708210526813,5982.0,0.00025,30]
[314347145,1708211432396,-414.64754481,0.00024975,2]
[314347146,1708211432406,-73.5179338,0.00024976,2]
[314347147,1708211432470,-1137.51728498,0.00024976,2]
[314347148,1708211432479,-155.0,0.00024992,2]
[314347149,1708211432489,-166.0,0.00025,2]
[314347150,1708211432500,-1826.74011498,0.000251,30]
[314347155,1708211438207,-3173.25988502,0.000251,30]
[314347156,1708211438217,-155.15153959,0.00028418,2]
[314347157,1708211438226,-297.17546881,0.000301,2]
[314347158,1708211438235,-155.0,0.00031,4]
[314347159,1708211438244,-205.0,0.00033007,2]
[314347160,1708211438253,-543.51,0.0003374,2]
[314347161,1708211438263,-198.68,0.00035594,2]
[314347162,1708211438272,-250.0,0.00035642,2]
[314347163,1708211438281,-250.0,0.00035651,2]
[314347164,1708211438290,-214.43,0.00035651,2]
[314347165,1708211438300,-2000.0,0.00035659,2]
[314347166,1708211438309,-150.0,0.00035669,3]
[314347167,1708211438318,-8205.84171848,0.0003567,2]
[314347168,1708211438331,-5627.89633892,0.0003567,2]
[314347169,1708211438350,-500.0,0.0003567,2]
[314347170,1708211438371,-6316.6519426,0.0003567,2]
[314347171,1708211438380,-150.0,0.00035752,2]
[314347172,1708211438391,-1597.24,0.00035764,2]
[314347173,1708211438401,-158.78,0.00035962,2]
[314347174,1708211438410,-543.51,0.00036004,2]
[314347175,1708211438420,-156.54,0.0003602,2]
[314347176,1708211438429,-167.88,0.00036045,2]
[314347177,1708211438439,-248.68,0.00036057,2]
[314347178,1708211438448,-156.54,0.00036278,2]
[314347179,1708211438458,-2500.0,0.000363,28]
[314347180,1708211438467,-156.54,0.00036535,2]
[314347181,1708211438477,-1000.0,0.00036557,2]
[314347182,1708211438486,-1007.12,0.00036668,2]
[314347183,1708211438496,-156.18,0.00036668,2]
[314347185,1708211438505,-156.54,0.00036792,2]
[314347187,1708211438514,-1500.0,0.000368,28]
[314347189,1708211438523,-166.44,0.00036803,2]
[314347191,1708211438532,-2000.0,0.00037,2]
[314347193,1708211438541,-150.0,0.00037,20]
[314347194,1708211438551,-156.54,0.0003705,2]
[314347195,1708211438561,-1500.0,0.000373,28]
[314347197,1708211438570,-156.54,0.00037307,2]
[314347199,1708211438579,-205.0,0.00037505,11]
[314347201,1708211438588,-150.0,0.00037544,2]
[314347203,1708211438597,-163.43,0.00037562,2]
[314347205,1708211438607,-156.54,0.00037564,2]
[314347207,1708211438616,-5700.38025982,0.00037601,2]
[314347210,1708211438625,-417.52264885,0.00037601,2]
[314347212,1708211438634,-200.0,0.00037696,3]
[314347214,1708211438643,-800.0,0.00037696,3]
[314347215,1708211438653,-200.0,0.00037696,10]
[314347218,1708211438663,-200.0,0.00037696,10]
[314347220,1708211438673,-37394.1360381,0.000377,5]
[314347693,1708211443306,-10029.19078022,0.000377,5]
[314347696,1708211443323,-4518.52352211,0.000377,5]
[314348021,1708211446326,-2868.25258016,0.000377,5]
[314348028,1708211446382,-675.78660902,0.000377,5]
[314348035,1708211446438,-870.2257524,0.000377,5]
[314348098,1708212632343,-205.0,0.00030007,2]
[314348099,1708212632353,-371.57357286,0.00034108,4]
[314348100,1708212632365,-746.41878368,0.00034108,4]
[314348101,1708212632376,-509.1183021,0.00034108,4]
[314348102,1708212632386,-322.16141251,0.00034109,2]
[314348103,1708212632425,-221.72858749,0.00034109,2]
[314348104,1708212632435,-30.49244222,0.00035005,11]
[314348105,1708212632449,-174.50755778,0.00035005,11]
[314348106,1708212632458,-1267.61,0.00035649,2]
[314348107,1708212632467,-155.07261367,0.00035654,2]
[314348108,1708212632477,-236.55,0.00035731,2]
[314348109,1708212632486,-265.53,0.00035731,2]
[314348110,1708212632496,-154.8,0.00035754,2]
[314348111,1708212632505,-2000.0,0.00035806,2]
[314348112,1708212632514,-250.0,0.0003584,2]
[314348113,1708212632524,-157.53,0.00035894,2]
[314348114,1708212632533,-250.0,0.00035906,2]
[314348115,1708212632542,-170.26,0.0003591,2]
[314348116,1708212632552,-159.53,0.0003594,2]
[314348117,1708212632561,-6646.77855169,0.00036026,2]
[314348120,1708212633056,-5989.96144831,0.00036026,2]
[314348121,1708212633066,-150.0,0.0003604,2]
[314348122,1708212633076,-1331.03,0.00036188,2]
[314348123,1708212633085,-2000.0,0.000362,2]
[314348124,1708212633094,-167.88,0.00036217,2]
[314348125,1708212633103,-104.14471622,0.00036263,2]
[314348126,1708212633115,-55.02528378,0.00036263,2]
[314348127,1708212633124,-543.89,0.00036373,2]
[314348128,1708212633133,-154.8,0.00036648,2]
[314348129,1708212633142,-2037.05,0.00036704,2]
[314348130,1708212633151,-1000.0,0.00036719,2]
[314348131,1708212633160,-3173.97218889,0.0003699,2]
[314348132,1708212633170,-1044.35236561,0.00036999,2]
[314348133,1708212633179,-16925.0,0.00037,2]
[314348134,1708212633188,-354.68,0.00037,2]
[314348135,1708212633197,-942.00600791,0.00037,2]
[314348136,1708212633209,-928.99399209,0.00037,2]
[314348137,1708212633218,-1526.954512,0.00037,26]
[314348138,1708212633228,-265.53,0.00037053,2]
[314348139,1708212633236,-239.13516952,0.000373,3]
[314348140,1708212633246,-19457.04662447,0.000373,2]
[314348141,1708212633261,-604.7260143,0.000373,2]
[314348142,1708212633273,-9396.69471139,0.000373,2]
[314348143,1708212633318,-1845.42721056,0.000373,2]
[314348144,1708212633330,-13319.51743803,0.000373,2]
[314348145,1708212633341,-667.61891395,0.000373,2]
[314348150,1708212638343,-5602.864881,0.000373,2]
[314348151,1708212638355,-5267.6752063,0.000373,2]
[314348152,1708212638364,-362.7247937,0.000373,2]
[314348153,1708212638375,-637.2752063,0.000373,2]
[314348154,1708212638384,-2243.7891,0.000373,2]
[314348155,1708212638394,-236.55,0.00037375,2]
[314348156,1708212638403,-1210.46133654,0.00037379,2]
[314348157,1708212638412,-13994.20230422,0.000374,5]
[314348158,1708212638429,-156551.18372911,0.000374,5]
[314348159,1708212638439,-211.1892,0.00037479,2]
[314348160,1708212638450,-157.86309225,0.000375,8]
[314348161,1708212638462,-1500.0,0.000375,26]
[314348162,1708212638471,-1040.06260578,0.0003751,2]
[314348163,1708212638481,-154.8,0.00037542,2]
[314348164,1708212638491,-63503.2545,0.000376,2]
[314348165,1708212638500,-500.0,0.000376,2]
[314348166,1708212638509,-332.7172,0.000376,2]
[314348167,1708212638519,-26531.2006,0.000376,2]
[314348168,1708212638529,-8678.2038,0.000376,2]
[314348169,1708212638539,-803.0257,0.000376,2]
[314348170,1708212638548,-107201.583,0.000376,2]
[314348171,1708212638559,-3000.0,0.00037601,2]
[314348172,1708212638569,-151.27592631,0.0003761,2]
[314348173,1708212638579,-1210.4613365,0.00037646,2]
[314348174,1708212638590,-200.0,0.00037658,3]
[314348175,1708212638600,-200.0,0.00037677,3]
[314348176,1708212638610,-200.0,0.00037677,3]
[314348177,1708212638619,-200.0,0.00037695,3]
[314348178,1708212638629,-800.0,0.00037695,3]
[314348179,1708212638638,-200.0,0.00037695,3]
[314348180,1708212638648,-200.0,0.00037695,10]
[314348181,1708212638657,-800.0,0.00037696,3]
[314348182,1708212638666,-200.0,0.00037696,10]
[314348183,1708212638676,-200.0,0.00037696,10]
[314348184,1708212638685,-200.0,0.00037696,10]
[314348185,1708212638695,-151.021833,0.00037698,25]
[314348186,1708212638705,-151.021833,0.00037698,25]
[314348187,1708212638720,-151.021833,0.00037698,25]
[314348188,1708212638730,-157.021833,0.00037698,44]
[314348189,1708212638740,-157.021833,0.00037698,43]
[314348190,1708212638749,-157.021833,0.00037698,43]
[314348191,1708212638758,-157.021833,0.00037698,44]
[314348192,1708212638767,-157.021833,0.00037698,44]
[314348193,1708212638776,-157.021833,0.00037698,44]
[314348195,1708212638786,-157.021833,0.00037698,43]
[314348197,1708212638795,-157.021833,0.00037698,43]
[314348199,1708212638804,-157.021833,0.00037698,36]
[314348201,1708212638813,-157.021833,0.00037698,36]
[314348203,1708212638822,-157.021833,0.00037698,36]
[314348205,1708212638831,-157.021833,0.00037698,30]
[314348207,1708212638841,-157.021833,0.00037698,30]
[314348209,1708212638850,-157.021833,0.00037698,30]
[314348211,1708212638859,-157.021833,0.00037698,30]
[314348213,1708212638869,-157.021833,0.00037698,29]
[314348215,1708212638878,-157.021833,0.00037698,29]
[314348217,1708212638887,-157.021833,0.00037698,29]
[314348219,1708212638896,-157.021833,0.00037698,29]
[314348221,1708212638905,-151.021833,0.00037698,45]
[314348223,1708212638915,-151.021833,0.00037698,45]
[314348226,1708212638924,-151.021833,0.00037698,45]
[314348228,1708212638933,-161.0,0.000377,4]
[314348230,1708212638942,-2000.0,0.000377,2]
[314348232,1708212638951,-200.0,0.000377,2]
[314348234,1708212638962,-2000.0,0.000377,2]
[314348235,1708212638971,-200.0,0.000377,2]
[314348238,1708212638981,-153.05109478,0.00037789,2]
[314348239,1708212638990,-537.08175214,0.00037789,2]
[314348242,1708212638999,-967.31473058,0.0003779,11]
[314348244,1708212639008,-151.26962144,0.0003779,2]
[314348246,1708212639017,-6982.39311,0.000378,2]
[314348248,1708212639027,-500.0,0.0003781,2]
[314348249,1708212639036,-500.0,0.0003781,2]
[314348252,1708212639046,-500.0,0.0003781,2]
[314348254,1708212639055,-500.0,0.0003781,2]
[314348256,1708212639065,-500.0,0.0003781,2]
[314348258,1708212639074,-290.7676,0.0003781,2]
[314348260,1708212639083,-1000.0,0.0003781,2]
[314348262,1708212639092,-1000.0,0.0003781,2]
[314348264,1708212639102,-1000.0,0.0003781,2]
[314348266,1708212639111,-1000.0,0.0003781,2]
[314348268,1708212639120,-1000.0,0.0003781,2]
[314348270,1708212639129,-1000.0,0.0003781,2]
[314348272,1708212639138,-1000.0,0.0003781,2]
[314348274,1708212639147,-1000.0,0.0003781,2]
[314348276,1708212639156,-1000.0,0.0003781,2]
[314348278,1708212639165,-1000.0,0.0003781,2]
[314348280,1708212639174,-1000.0,0.0003781,2]
[314348282,1708212639183,-1000.0,0.0003781,2]
[314348284,1708212639192,-536.0104,0.0003781,2]
[314348286,1708212639202,-500.0,0.0003781,2]
[314348288,1708212639212,-500.0,0.0003781,2]
[314348290,1708212639222,-500.0,0.0003781,2]
[314348292,1708212639232,-500.0,0.0003781,2]
[314348294,1708212639241,-500.0,0.0003781,2]
[314348296,1708212639250,-500.0,0.0003781,2]
[314348314,1708212639411,-500.0,0.0003781,2]
[314348317,1708212639424,-555.1087,0.0003781,2]
[314348319,1708212639434,-159.53,0.00037813,2]
[314348321,1708212639446,-537.08175211,0.00037817,2]
[314348323,1708212639456,-156.54,0.00037821,2]
[314348325,1708212639466,-165.69,0.00037839,2]
[314348327,1708212639475,-537.08175211,0.00037845,2]
[314348329,1708212639484,-1056.7203231,0.00037845,2]
[314348331,1708212639494,-537.08175211,0.00037872,2]
[314348333,1708212639503,-281.64453634,0.00037878,2]
[314348335,1708212639512,-210.58168001,0.00037878,7]
[314348337,1708212639522,-521.4195906,0.00037878,2]
[314348339,1708212639533,-1950.84207304,0.00037878,2]
[314348341,1708212639543,-155.07261367,0.00037878,2]
[314348343,1708212639553,-599.94849693,0.00037887,2]
[314348345,1708212639562,-370163.63977671,0.00037888,2]
[314348347,1708212639572,-5000.0,0.0003789,3]
[314348349,1708212639581,-153.67516023,0.000379,2]
[314348351,1708212639590,-523781.269511,0.000379,3]
[314348353,1708212639599,-537.08175211,0.000379,2]
[314348355,1708212639608,-1615.42,0.000379,2]
[314348357,1708212639618,-153.0,0.00037908,7]
[314348359,1708212639627,-1210.4613365,0.00037913,2]
[314348361,1708212639636,-150.01,0.00037961,2]
[314348363,1708212639645,-3317.68767406,0.00037961,2]
[314348365,1708212639655,-74825.8956444,0.00037968,3]
[314348367,1708212639664,-967.31473058,0.00037971,11]
[314348369,1708212639674,-1322528.40194975,0.00037978,2]
[314348371,1708212639683,-945.0534,0.00037978,2]
[314348373,1708212639693,-16166.3269022,0.00037978,2]
[314348375,1708212639703,-6769.7229804,0.00037978,2]
[314348377,1708212639712,-244858.3304806,0.00037978,2]
[314348379,1708212639722,-18489.5260747,0.00037978,2]
[314348381,1708212639731,-20751.45743411,0.00037978,2]
[314348383,1708212639740,-74825.8956444,0.00037979,3]
[314348385,1708212639749,-150.0,0.00037988,30]
[314348387,1708212639758,-150.0,0.00037989,30]
[314348389,1708212639768,-2000.0,0.00037989,2]
[314348391,1708212639777,-200.0,0.00037989,2]
[314348393,1708212639787,-2000.0,0.00037989,2]
[314348395,1708212639796,-200.0,0.00037989,2]
[314348397,1708212639807,-788.74929389,0.0003799,6]
[314348398,1708212639816,-1200.8276809,0.00037997,2]
[314348399,1708212639826,-165.40063134,0.00037999,30]
[314348400,1708212639835,-366.45707248,0.00037999,2]
[314348401,1708212639844,-277.79334547,0.00038,2]
[314348402,1708212639854,-265.0,0.00038,5]
[314348403,1708212639864,-119839.35209164,0.00038,2]
[314348404,1708212639877,-124363.08377718,0.00038,2]
[314348405,1708212639894,-5677.97170208,0.00038,2]
[314348406,1708212639906,-406.55155831,0.00038,2]
[314348407,1708212639926,-1109.82394119,0.00038,2]
[314348408,1708212639938,-4042.566642,0.00038,2]
[314348409,1708212639949,-7442.804616,0.00038,2]
[314348410,1708212640007,-1108.77575039,0.00038,2]
[314348411,1708212640069,-1320.547675,0.00038,2]
[314348434,1708212641793,-338.32577931,0.00038,2]
[314348435,1708212641804,-1125.5679884,0.00038,2]
[314348439,1708212643601,-150.01,0.00037961,2]
[314348440,1708212643610,-52267.03980675,0.00038,2]
[314348441,1708212643633,-23472.14154043,0.00038,2]
[314348442,1708212643645,-40984.44022538,0.00038,2]
[314348443,1708212643656,-6856.79080435,0.00038,2]
[314348445,1708212643667,-5598.764225,0.00038,2]
[314348447,1708212643679,-3946.51429745,0.00038,2]
[314348449,1708212643688,-1678.48570255,0.00038,2]
[314348450,1708212646490,-6193.51922399,0.000377,2]
[314348451,1708212646658,-1974.21330849,0.000377,2]
[314348452,1708212646716,-2648.78751764,0.000377,2]
[314348453,1708212646728,-1331.949996,0.000377,2]
[314348504,1708213831663,-400.87049612,0.00027003,2]
[314348508,1708213837495,-810.16472266,0.00027003,2]
[314348509,1708213837505,-421.95554031,0.00027004,2]
[314348510,1708213837514,-204.0,0.00027007,2]
[314348511,1708213837523,-679.06997252,0.0003,5]
[314348512,1708213837532,-204.0,0.00032505,11]
[314348513,1708213837541,-489.5,0.00034245,2]
[314348514,1708213837550,-1000.0,0.00035732,2]
[314348515,1708213837560,-1056.34,0.00035732,2]
[314348516,1708213837569,-2550.36,0.00035859,2]
[314348517,1708213837578,-250.0,0.00035861,2]
[314348518,1708213837587,-161.78,0.00035982,2]
[314348519,1708213837595,-183.0,0.00036,2]
[314348520,1708213837604,-162.0,0.00036,2]
[314348521,1708213837613,-159.31,0.00036014,2]
[314348522,1708213837622,-250.0,0.00036048,2]
[314348523,1708213837631,-170.26,0.00036144,2]
[314348524,1708213837640,-157.7,0.00036145,2]
[314348525,1708213837649,-2000.0,0.00036231,2]
[314348526,1708213837658,-1415.43,0.00036235,2]
[314348527,1708213837667,-150.0,0.00036339,2]
[314348528,1708213837677,-489.5,0.00036509,2]
[314348529,1708213837686,-203.95,0.00036524,2]
[314348530,1708213837695,-167.88,0.00036638,2]
[314348531,1708213837708,-161.78,0.00036702,2]
[314348532,1708213837717,-203.95,0.00036716,2]
[314348533,1708213837726,-203.95,0.00036908,2]
[314348534,1708213837735,-2000.0,0.00037,2]
[314348535,1708213837745,-15232.0,0.00037,2]
[314348536,1708213837754,-16659.98077517,0.00037,5]
[314348537,1708213837764,-16659.98077517,0.00037,5]
[314348538,1708213837773,-2739.16,0.00037067,2]
[314348539,1708213837782,-14288.5,0.00037067,2]
[314348540,1708213837792,-1317.11920099,0.000371,2]
[314348541,1708213837802,-203.95,0.00037101,2]
[314348542,1708213837811,-426.08275879,0.00037199,4]
[314348543,1708213837821,-16659.98077517,0.00037199,5]
[314348544,1708213837830,-242.6823,0.000372,2]
[314348546,1708213837841,-24027.7669564,0.000372,2]
[314348548,1708213837854,-76118.4115436,0.000372,2]
[314348549,1708213837864,-252.7592,0.000372,2]
[314348550,1708213837874,-6654.67941889,0.000372,2]
[314348551,1708213837884,-203.95,0.00037293,2]
[314348553,1708213837893,-166276.6691,0.000373,2]
[314348555,1708213837902,-3738.4783,0.000373,2]
[314348557,1708213837911,-24938.0181,0.000373,2]
[314348559,1708213837921,-159.31,0.00037347,2]
[314348561,1708213837930,-162.0,0.00037397,2]
[314348563,1708213837940,-1317.11920094,0.00037398,2]
[314348565,1708213837949,-161.78,0.00037422,2]
[314348567,1708213837958,-203.95,0.00037485,2]
[314348569,1708213837968,-6654.6794188,0.00037487,2]
[314348572,1708213837980,-16659.98077517,0.000375,5]
[314348574,1708213837989,-10000.0,0.00037518,3]
[314348576,1708213837999,-155.87937751,0.0003762,2]
[314348578,1708213838008,-155.87937751,0.0003762,2]
[314348580,1708213838018,-150.0,0.00037653,2]